Workbook

Sheet Bearbeitungshinweise
J1: Das Berechnungsblatt Elternunterhalt
J3: entstanden aus FamRZ-Buch 21, 5. Aufl. 2015
J4: Das Berechnungsblatt Elternunterhalt ermöglicht dem Anwalt die schnelle Berechnung von Elternunterhalt.
J5: Es wurde die Berechnungsmethode aus der Entscheidung des BGH v. 28.7.2010 - XII ZR 140/07
J6: als einzige Berechnungsmethode gewählt, weil sich durch diese Entscheidung die übrigen
J7: Methoden erübrigen.
J9: Die Handhabung des Berechnungsblattes ist denkbar einfach:
J10: 1. Klicken Sie auf den Registereintrag 'Unterhaltsberechnung';
J11: 2. Tragen Sie die Nettoberechnungswerte in die weißen Felder des Berechnungsblattes ein;
J12: 3. Das Feld 'berufsbedingte Aufwendungen' ist vorbelegt mit 5% des Erwerbseinkommens. Diese Vorein-
J13: stellung kann einfach überschrieben werden.
J14: 4. Lesen Sie das Ergebnis ab und variieren Sie gegebenenfalls die Einträge;
J15: 5. Drucken Sie das Berechnungsblatt aus
J16: 6. Speichern Sie die Berechnung in einem Verzeichnis Ihrer Wahl, am besten unter einem Namen ab.
J17: 7. Sie können sich die Arbeit mit dem Berechnungsblatt ganz erheblich dadurch vereinfachen, dass
J18: Sie das Blatt als 'Dokumentvorlage' unter der Bezeichnung 'Elternunterhalt.xlt' abspeichern.
J19: In diesem Fall laden Sie ein neues Blatt stets über <alt> + <Datei> + <Neu>. Es erscheint
J20: dann eine Auswahl von Dokumentvorlagen (Extension xlt). Wählen Sie 'Elternunterhalt'.
J21: Das daraufhin geladene Berechnungsblatt trägt die Extension xls und ist eine Kopie der xlt-Datei.
J22: Der Vorteil dieses Vorgehens ist, dass Sie nicht versehentlich die Dokumentvorlage ändern können.
J24: Der Autor übernimmt naturgemäß keine Haftung für die gefundenen Ergebnisse.
J25: Hinweis für juristische Laien:
J26: Elternunterhalt ist ein komplexes Rechtsgebiet, das relativ neu ist und in dem noch viele Frage-
J27: stellungen unklar und offen sind. Der Einsatz dieses Berechnungsblattes ersetzt nicht juristische
J28: Qualifikation und macht niemanden zum Unterhaltsrechtler.
J29: Nichts ersetzt den Rat und die ausführliche Beratung durch einen Fachanwalt für Familienrecht.
J30: Sparen Sie nicht am falschen Ende. Eine Erstberatung kostet in der Regel nicht mehr
J31: als 190 € zzgl. MWSt. Elternunterhalt kostet meist deutlich mehr.
J33: ©Copyright: Rechtsanwalt Jörn Hauß
J34: Fachanwalt für Familienrecht
J35: Vom-Rath-Str. 10
J36: 47051 Duisburg
J37: Tel: 0203/286870
J38: www.anwaelte-du.de
J39: hauss@anwaelte-du.de
B40: Bestellung:
B42: Gleich an den Verlag faxen: 0521/143715 | F42: 5. Aufl. (Januar) 2015
B43: oder beim Buchhändler oder | F43: brosch. 49,-- €, ISBN 978-3-7694-1136-2
B44: oder Verlag bestellen
B45: Ja, bitte senden Sie mir | D45: 1 | E45: Expl. (zzgl. Versandkosten)
B46: mit 14-tägigem Rückgaberecht
B47: Name: | C47: ………………………………………………………………………………
B48: Straße: | C48: ………………………………………………………………………………………
B49: PLZ/Ort | C49: ………………………………………………………………………………………
B51: Datum/Unterschrift:…………………………………………………………………….
B52: Verlag Gieseking - Postfach 13 01 20 - 33544 Bielefeld - Fax 0521/143715
B53: Kontakt@gieseking-verlag.de

Sheet Unterhaltsberechnung
A1: Elternunterhaltsberechnung *) | F1: Berechnung nach OLG Düsseldorf *) | Y1: 1.00 € | Z1: =IF(Z3=1,3/7,4.5/10) -> 0.4285714286 | AA1: 1 | AB1: 10.0%
A2: Einkommensbereinigung bitte stets Nettobeträge eingeben | B2: U-Pflichtiger | D2: Gatte | F2: Das OLG Düsseldorf hat in einer Entscheidung v. 8.2.07 - II-3 UF 270/05, FamRB 2007, 264 eine von der links wiedergegebenen Entscheidung abweichende Berechnung entwickelt, die ausschließlich für verheiratete Unterhaltspflichtige gilt und in bestimmten Konstellationen deutliche Vorteile für die Unterhaltspflichtigen liefert. Wir bieten diese Methode als Berechnungsergänzung an.Die Methode ist insbesondere dann für die Unterhaltspflichtigen günstiger, wenn deren Einkommen höher ist, als das des Gatten. Die Methode gelangt zu einem ausgewogeneren Unterhaltsprofil. | N2: =+B2 -> U-Pflichtiger | P2: =+D2 -> Gatte | Z2: TRUE | AA2: 2 | AB2: 12.5%
A3: Erwerbseinkommen (netto) Rn. 209 ff. | C3: =+B3+D3 -> 0.00 € | N3: =+B3 -> 0.00 € | P3: =+D3 -> 0.00 € | U3: =+#REF!/(#REF!+#REF!) ->  | V3: =+#REF!/(#REF!+#REF!) ->  | Z3: 1 | AA3: 3 | AB3: 14.0%
A4: Mieteinnahmen (netto) Rn. 254 ff. | N4: =+B4 -> 0.00 € | P4: =+D4 -> 0.00 € | Z4: FALSE | AA4: 4 | AB4: 25.0%
A5: Kapitaleinkünfte (nur, wenn Altersvorsorgevermögen überschritten, Rn. 295 ff.) | N5: =+B5 -> 0.00 € | P5: =+D5 -> 0.00 € | AB5: 2
A6: Renten (Nettobeträge) | N6: 0.00 € | P6: 0.00 € | AB6: =VLOOKUP(AB5,AA1:AB4,2) -> 12.5%
A7: Sonstiges | N7: 0.00 € | P7: 0.00 €
A8: Wohnvorteil, Rn. 263ff. | N8: 0.00 € | P8: 0.00 €
A9: Steuererstattungen (Nachzahlungen unter Abzüge eintragen) Rn. 299 ff. | N9: 0.00 € | P9: 0.00 €
A10: Summe der Einkünfte | B10: =SUM(B3:B9) -> 0.00 € | C10: =+D10+B10 -> 0 | D10: =IF(Z2=TRUE,SUM(D3:D9),0) -> 0.00 € | N10: 0.00 € | P10: 0.00 €
A11: ./. Vermögenswirksame Leistungen | C11: Bitte geben Sie die Werte mit negativem Vorzeichen ein | N11: 0.00 € | P11: 0.00 €
A12: ./. Private Kranken- und Pflegeversicherung, Rn. 404 ff. | N12: 0.00 € | P12: 0.00 €
A13: ./. Berufsbedingte Aufwendungen, 5% d. Erwerbseinkommens, Rn. 469 ff. | N13: 0.00 € | P13: 0.00 €
A14: ./. Immobilienverbindlichkeiten, Rn. 490 ff. | N14: 0.00 € | P14: 0.00 €
A15: ./. Verbraucherdarlehen, Rn. 476 ff. | N15: 0.00 € | P15: 0.00 €
A16: ./. Sonstige Schulden, Rn. 476 ff. | N16: 0.00 € | P16: 0.00 € | U16: =+#REF!/(#REF!+#REF!) ->  | V16: =+#REF!/(#REF!+#REF!) ->  | W16: =+A3 -> Erwerbseinkommen (netto) Rn. 209 ff.
A17: ./. Unterhaltsansprüche f. Kinder, gemeinsame Kinder s.u., Rn. 435 ff. | N17: 0.00 € | P17: 0.00 €
A18: ./. Sonstige Unterhaltsansprüche, Rn. 426 ff. | N18: 0.00 € | P18: 0.00 €
A19: ./. Lebensversicherungsprämien, Rn. 625 ff. | N19: 0.00 € | P19: 0.00 €
A20: ./. Sonstige Altersversorgung, Rn. 334 ff. | N20: 0.00 € | P20: 0.00 €
A21: ./. Fahrtkosten und Aufwendungen für den Elternteil, Rn. 503 ff. | N21: 0.00 € | P21: 0.00 €
A22: ./. Sonstiges | N22: 0.00 € | P22: 0.00 € | W22: der Einkünfte
A23: ./. Sonstiges | F23: ="Empfohlener Prozentsatz 'häusliche Ersparnis': "&TEXT(J42,"#,0%") ->  | N23: 0.00 € | P23: 0.00 € | W23: des bereinigten Einkommens
A24: ./. Zusätzliche Aufwendungen | N24: 0.00 € | P24: 0.00 €
A25: Summe der Abzüge | B25: =SUM(B11:B24) -> 0.00 € | C25: =D25+B25+B10+D10 -> 0.00 | D25: =IF(Z2=TRUE,SUM(D11:D24),0) -> 0.00 € | N25: 0.00 € | P25: 0.00 €
A26: Unterhaltsansprüche gemeinsamer Kinder | B26: =IF((B25+D25+B10+D10)<>0,-C26*(B25+B10)/(B25+D25+B10+D10),0) -> 0.00 € | D26: =IF(C25<>0,-C26*(D25+D10)/C25,0) -> 0.00 €
A27: tatsächlich erforderliche Kosten des Wohnens, Rn. 512 ff. | F27: =CHOOSE(M31,"vgl. Hauß, Elternunterhalt, Rn. 172","OLG Düsseldorf, FamRB 2007, 264","OLG Hamm, 16.12.05 - 11 UF 118/05") -> OLG Düsseldorf, FamRB 2007, 264 | G27: 12.50% | H27: 14.00% | I27: 25.00% | N27: =+N25+N10 -> 0.00 € | O27: =+P27+N27 -> 0.00 | P27: =+P25+P10 -> 0.00 €
A28: anrechenbares bereinigtes Einkommen | B28: =IF(+B10+B25+B26<0,0,+B10+B25+B26) -> 0.00 € | D28: =IF(D25+D10+D26<0,0,D25+D10+D26) -> 0.00 €
A29: Methode: BGH XII ZR 140/07 (FamRZ 2010, 1535) | F29: =TEXT(M30,"0,0%")&" häusl. Ersparnis" -> 14,0% häusl. Ersparnis | G29: =-O27*G27 -> 0 | H29: =-O27*H27 -> 0 | I29: =-O27*I27 -> 0 | L29: häusl. Ersparnis | O29: =-O27*Ersparnis -> 0.00 €
A30: Anteile am Gesamteinkommen | B30: =IF(B28+D28>0,+B28/(B28+D28),0) -> 0.00% | C30: =+B28+IF(Z2=TRUE,D28,0) -> 0.00 | D30: =IF(D28+B28>0,+D28/(D28+B28),0) -> 0.00% | F30: anrechenbares Familieneinkommen | G30: =+O27+G29 -> 0.00 € | H30: =+O27+H29 -> 0.00 € | I30: =+I29+O27 -> 0.00 € | L30: 12.5% | M30: =CHOOSE(M31,haeslErsparnis,L31,L32) -> 0.14 | O30: =+O29+O27 -> 0.00 €
A31: ./. Familien SB | C31: =IF(Jahreswechsel=TRUE,IF(Z2=TRUE,-Parametereinstellung!B19-Parametereinstellung!C19,Parametereinstellung!B19*-1),IF(Z2=TRUE,-Parametereinstellung!B6-Parametereinstellung!C6,Parametereinstellung!B6*-1)) -> -3,240.00 € | F31: nach Halbteilungsgrds. zustehend | G31: =+G30/2 -> 0.00 € | H31: =+H30/2 -> 0.00 € | I31: =+I30/2 -> 0.00 € | K31: 2 | L31: 14.0% | M31: 2 | N31: =+O30/IF(Z2=TRUE,2,1) -> 0.00 € | P31: =IF(Z2=TRUE,+O30/2,0) -> 0.00 €
A32: =IF(C32<0,"./. Selbstbehaltserhöhung wegen erhöhter Wohnkosten (inkl. Heizung)","") ->  | C32: =IF(C27>Parametereinstellung!B7+IF(Z2=TRUE,Parametereinstellung!C7,0),Parametereinstellung!B7+IF(Z2=TRUE,Parametereinstellung!C7,0)-Unterhaltsberechnung!C27,0) -> 0.00 | F32: zzgl. häusl. Ersparnis gem. Quote | G32: =-G29*#REF! ->  | H32: =-H29*#REF! ->  | I32: =-I29*#REF! ->  | L32: 25.0% | N32: =-O29*N27/O27 ->  | P32: =-O29*P27/O27 -> 
A33: Resteinkommen | C33: =IF(+C30+C31+C32<0,0,+C30+C31+C32) -> 0.00 € | F33: unterhaltsrelevantes Einkommen | G33: =+G32+G31 ->  | H33: =+H32+H31 ->  | I33: =+I32+I31 ->  | N33: =+N32+N31 ->  | P33: =+P32+P31 -> 
A34: =IF(Z2=TRUE,"./. Haushaltsersparnis 10% des Resteinkommens von: "&TEXT(C33,"#.###,00"),"") -> ./. Haushaltsersparnis 10% des Resteinkommens von: ,00 | C34: =IF(Z2=TRUE,IF(C33>0,-C33*10%,0),0) -> 0.00 €
A35: ="Familieneinkommen > Familienselbstbehalt: "&TEXT(C33,"#.###,00")&IF(C34<0," - "&TEXT(ABS(C34),"#.###,00")&" = ","") -> Familieneinkommen > Familienselbstbehalt: ,00 | C35: =+C33+C34 -> 0.00 €
A36: ="1/2 des den Familien-SB übersteigenden Einkommens: "&TEXT(C35,"#.###,00")&" / 2 =" -> 1/2 des den Familien-SB übersteigenden Einkommens: ,00 / 2 = | C36: =IF(C35>0,+C35/2,0) -> 0.00 € | G36: =+N36 -> 0.00 € | H36: =+G36 -> 0.00 € | I36: =+H36 -> 0.00 €
A37: + Selbstbehalt | C37: =-C31 -> 3,240.00 € | G37: =+N37 -> 0.00 € | H37: =+N37 -> 0.00 € | I37: =+O37 -> 0.00 € | P37: =-#REF!*P34 -> 
A38: ="individueller Familienselbstbehalt: "&TEXT(C37,"#.###,00")&IF(C36>0," + "&TEXT(C36,"#.###,00"),"")&IF(C32<0," + "&TEXT(ABS(C32),"#.###,00"),"")&" =" -> individueller Familienselbstbehalt: 3.240,00 = | C38: =+C37+C36-C32 -> 3,240.00 € | F38: Einkommen > Selbstbehalt | G38: =+G37+G36+G33 ->  | H38: =+H37+H36+H33 ->  | I38: =+I37+I36+I33 ->  | N38: =+N33+N37+N36 ->  | P38: =+P33+P37+P36 -> 
A39: ="vom U-Pflichtigen zu deckender "&IF(Z2=TRUE,"FamSB: ","Selbstbehalt: ")&TEXT(C38,"#.###,00")&" x "&TEXT(B30,"##,0#%")&" =" -> vom U-Pflichtigen zu deckender FamSB: 3.240,00 x ,0% = | B39: =ROUND(-C38*B30,2) -> 0.00 € | F39: 1/2 des Einkommens > Selbstbehaltes | G39: =+G38/2 ->  | H39: =+H38/2 ->  | I39: =+I38/2 ->  | N39: =IF(+N38/2<0,0,N38/2) -> 
A40: ="für Elternunterhalt einzusetzen: "&TEXT(B28,"#.###,00")&" - "&TEXT(ABS(B39),"#.###,00")&" = "&TEXT(B28+B39,"#.##0,00")&" =" -> für Elternunterhalt einzusetzen: ,00 - ,00 = 0,00 = | B40: =ROUND(IF(+B39+B28<0,0,+B39+B28),0) -> 0.00 € | C40: =IF(B40=0,"Kein Elternunterhalt","") -> Kein Elternunterhalt
A41: *) Die Randnummerangaben beziehen sich auf Randnummern im FamRZ-Buch "Elternunterhalt", 5. Aufl. | J41: =MIN(G42:I42) ->  | O41: =IF(N42=0,"Kein Elternunterhalt!","") -> 
F42: Elternunterhaltsanspruch | G42: =+ROUND(G39,0) ->  | H42: =+ROUND(H39,0) ->  | I42: =+ROUND(I39,0) ->  | J42: =IF(G42=J41,G27,IF(H42=J41,H27,IF(I42=J41,I27,0))) ->  | L42: TRUE | N42: =IF(#REF!>0,IF(N39>#REF!,#REF!,ROUND(N39,0)),0) -> 
F43: *) soweit Angaben wie 'Rn 101ff' im Text zu finden sind, handelt es sich um Hinweise auf die Randnummern im FamRZ-Buch 21, Hauß, Elternunterhalt, 2. Aufl. 2007, Bielefeld
A45: Methode: BGH XII ZR 140/07 Vorschlag Hauß
A46: =+A28 -> anrechenbares bereinigtes Einkommen | B46: =+B28 -> 0.00 € | D46: =+D28 -> 0.00 €
A47: Anteile am Gesamteinkommen | B47: =+B46/(B46+D46) ->  | C47: =+B46+D46 -> 0.00 | D47: =+D46/(D46+B46) -> 
A48: =IF(Z2=TRUE,"./. Familien Selbstbehalt: 2 x"&TEXT(Parametereinstellung!B6,"#.###,00")&" - 2 x "&TEXT(Parametereinstellung!B6,"#.###,00")&" x "&TEXT(D48,"##,0%"),"./. Selbstbehalt ") -> ./. Familien Selbstbehalt: 2 x1.800,00 - 2 x 1.800,00 x 10,0% | C48: =IF(Z2=TRUE,-2*Parametereinstellung!B6+2*Parametereinstellung!B6*D48,-Parametereinstellung!B6) -> -3,240.00 € | D48: =IF(Z2=TRUE,VLOOKUP(V67,U63:V66,2),0) -> 10.0%
A49: =IF(C49<0,A32,"") ->  | C49: =+C32 -> 0.00 €
A50: ="Resteinkommen: "&TEXT(C47,"##.###,00")&" - "&TEXT(ABS(C48),"##.###,00") -> Resteinkommen: ,00 - 3.240,00 | C50: =IF(+C47+C48<0,0,C47+C48) -> 0.00 € | D50: =IF(Z2=TRUE,"Synergiesatz","") -> Synergiesatz
A51: =IF(Z2=TRUE,"./. Haushaltsersparnis: "&TEXT(D48,"##,0%")&" des Resteinkommens von: "&TEXT(C50,"#.###,00"),"") -> ./. Haushaltsersparnis: 10,0% des Resteinkommens von: ,00 | B51: =IF(D48*C50>V68,"gekappt!","") ->  | C51: =IF(ABS(-C50*D48)>V68,-V68,-C50*D48) -> 0.00 € | D51: =IF(Z2=TRUE,"max. "&TEXT(V68,"#.###,00€"),"") -> max. 340,00€
A52: ="Familieneinkommen > Familienselbstbehalt: "&TEXT(C50,"#.###,00")&IF(C51<0," - "&TEXT(ABS(C51),"#.##0,00"),"")&" = " -> Familieneinkommen > Familienselbstbehalt: ,00 = | C52: =+C50+C51 -> 0.00 €
A53: ="1/2 des den Familien-SB übersteigenden Einkommens:"&TEXT(C52,"#.###,00")&" / 2 =" -> 1/2 des den Familien-SB übersteigenden Einkommens:,00 / 2 = | C53: =+C52/2 -> 0.00 €
A54: + Familienselbstbehalt | C54: =-C48 -> 3,240.00 € | D54: SB-Höchstwert
A55: =IF(C53+C54>D55,"gekappter ","")&"individueller "&IF(Z2=TRUE,"Familienselbstbehalt: ","Selbstbehalt: ")&IF(C53>0,TEXT(C54,"#.###,00")&IF(C53>0," + "&TEXT(C53,"#.###,00"),"")&IF(C49<0," + "&TEXT(ABS(C49),"#.###,00"),"")&" =","") -> individueller Familienselbstbehalt: | C55: =IF(C54+C53-C49>D55,D55,C54+C53-C49) -> 3,240.00 € | D55: 5,000.00 €
A56: ="vom U-Pflichtigen zu deckender "&IF(Z2=TRUE,"FamSB: ","Selbstbehalt: ")&TEXT(C55,"#.###,00")&IF(Z2=TRUE," x "&TEXT(B47,"##,0#%"),"")&" =" ->  | B56: =ROUND(-C55*B47,2) -> 
A57: ="für Elternunterhalt einzusetzen: "&TEXT(B46,"#.###,00")&" - "&TEXT(ABS(B56),"#.###,00")&" =" ->  | B57: =ROUND(IF(+B56+B46<0,0,+B56+B46),0) ->  | C57: =IF(B57=0,"kein Elternunterhalt","") -> 
B59: =IF(+B40+B39<0,0,+B40+B39) -> 0.00 €
U63: 1 | V63: 10.0%
U64: 2 | V64: 12.5%
U65: 3 | V65: 14.0%
U66: 4 | V66: 25.0%
V67: 1
V68: =IF(Z2=TRUE,Parametereinstellung!C16-(2*Parametereinstellung!B6+C48),0) -> 340.00 €

Sheet Schonvermögen
B1: Berechnung des Altersvorsorgeschonvermögens*)
C3: Unterhaltspflichtiger | D3: Gatte | E3: 1 | L3: Alter | M3: jährl. Versor-gungskapital § 851c ZPO | N3: Summe Versorgungs- kapital
B4: Sozialversicherungspflicht | E4: TRUE | F4: TRUE | L4: 18 | M4: 2000 | N4: =+M4 -> 2000
B5: Beamter | E5: FALSE | F5: FALSE | L5: 19 | M5: 2000 | N5: =+M5+N4 -> 4000
B6: Bruttoeinkommen | C6: 100,000.00 € | E6: TRUE | L6: 20 | M6: 2000 | N6: =+M6+N5 -> 6000
B7: Beitragsbemessungsgrenze | C7: =IF(E4=TRUE,CHOOSE($E$3,IF($E$7=FALSE,Parametereinstellung!B14,Parametereinstellung!C14),IF($E$7=FALSE,Parametereinstellung!B27,Parametereinstellung!C27))*IF($E$6=FALSE,1,12),0) -> 77,400.00 € | D7: =IF(F4=TRUE,CHOOSE(E3,IF($E$7=FALSE,Parametereinstellung!B14,Parametereinstellung!C14),IF($E$7=FALSE,Parametereinstellung!B27,Parametereinstellung!C27))*IF($E$6=FALSE,1,12),0) -> 77,400.00 € | E7: FALSE | L7: 21 | M7: 2000 | N7: 8000
B8: Einkommen > Beitragsbemessungsgrenze | C8: =IF(C6>C7,C6-C7,0) -> 22,600.00 € | D8: =IF(D6>D7,D6-D7,0) -> 0 | L8: 22 | M8: 2000 | N8: 10000
B9: Alter | C9: 50 | D9: 45 | L9: 23 | M9: 2000 | N9: 12000
B10: Erwerbsjahre ab 18. Lebensjahr | C10: =+C9-18 -> 32 | D10: =+D9-18 -> 27 | L10: 24 | M10: 2000 | N10: 14000
B11: ="Altersvorsorge: 5% x " & TEXT(C6,"#.###,00") & IF(AND(C8>0,E5=FALSE)," + 20% x " &TEXT(C8,"#.###,00"),"") -> Altersvorsorge: 5% x 100.000,00 + 20% x 22.600,00 | C11: =IF(E5=TRUE,C6*0.05,C6*0.05+C8*0.2) -> 9,520.00 € | D11: =IF(F5=TRUE,D6*0.05,D6*0.05+D8*0.2) -> 0 | L11: 25 | M11: 2000 | N11: 16000
B12: ="mit 4% aufgezinster Betrag von "&TEXT(C11,"###.##0,00")&" über "&TEXT(C10,"##")&" Jahre =" -> mit 4% aufgezinster Betrag von 9.520,00 über 32 Jahre = | C12: =FV(0.04/IF(E6=FALSE,12,1),C10*IF(E6=TRUE,1,12),-C11) -> 596,917.98 € | D12: =FV(0.04/IF(E6=FALSE,12,1),D10*IF(E6=TRUE,1,12),-D11) -> 0.00 € | L12: 26 | M12: 2000 | N12: 18000
B13: Summe | C13: =+C12+D12 -> 596,917.98 € | L13: 27 | M13: 2000 | N13: 20000
B14: Schonvermögen nach § 851c ZPO | C14: =IF(C9<18,0,VLOOKUP(C9,Tabelle851,3)) -> 118,000.00 € | D14: =IF(D9<18,0,VLOOKUP(D9,Tabelle851,3)) -> 91,000.00 € | L14: 28 | M14: 2000 | N14: 22000
L15: 29 | M15: 2000 | N15: 24000
L16: 30 | M16: 4000 | N16: 28000
L17: 31 | M17: 4000 | N17: 32000
L18: 32 | M18: 4000 | N18: 36000
L19: 33 | M19: 4000 | N19: 40000
L20: 34 | M20: 4000 | N20: 44000
L21: 35 | M21: 4000 | N21: 48000
L22: 36 | M22: 4000 | N22: 52000
L23: 37 | M23: 4000 | N23: 56000
L24: 38 | M24: 4000 | N24: 60000
L25: 39 | M25: 4000 | N25: 64000
L26: 40 | M26: 4500 | N26: 68500
B27: *) nach BGH v. 30.8.06 - XII ZR 98/04, FamRZ 2006, 1511 | L27: 41 | M27: 4500 | N27: 73000
L28: 42 | M28: 4500 | N28: 77500
B29: Der Bundesgerichtshof hat in der oben angegebenen Entscheidung entschieden, dass jedem | L29: 43 | M29: 4500 | N29: 82000
B30: seinen Eltern gegenüber unterhaltspflichtigen Kind ein Altersvorsorgeschonvermögen | L30: 44 | M30: 4500 | N30: 86500
B31: zusteht, dessen Höhe sich pauschal wie folgt berechnet: | L31: 45 | M31: 4500 | N31: 91000
B32: monatliche Rücklagen vom Bruttoeinkommen können in Höhe von 5% für sozialversich- | L32: 46 | M32: 4500 | N32: 95500
B33: erungspflichtiges Einkommen und in Höhe von 25% für nicht sozialversicherungspflichtiges | L33: 47 | M33: 4500 | N33: 100000
B34: Einkommen gebildet werden. Maßgeblich ist das aktuelle Monatseinkommen. Diese Rücklagen | L34: 48 | M34: 6000 | N34: 106000
B35: werden über die Lebensarbeitszeit ab dem 18. Lebensjahr anerkannt und mit 4% aufgezinst. | L35: 49 | M35: 6000 | N35: 112000
L36: 50 | M36: 6000 | N36: 118000
B37: Hat ein unterhaltspflichtiges Kind keine ausreichende Altersversorgung zu erwarten, können | L37: 51 | M37: 6000 | N37: 124000
B38: über diese pauschalierte Berechnung hinausgehende Altersvorsorgerücklagen gebildet werden. | L38: 52 | M38: 6000 | N38: 130000
B39: Eine angemessene Altersversorgung beträgt 75% des letzten Nettoeinkommens, mindestens | L39: 53 | M39: 6000 | N39: 136000
B40: jedoch 1.500 € für einen alleinstehenden Unterhaltspflichtigen und 2.700 € für verheiratete | L40: 54 | M40: 8000 | N40: 144000
B41: Unterhaltspflichtige. | L41: 55 | M41: 8000 | N41: 152000
L42: 56 | M42: 8000 | N42: 160000
B43: Rücklagen für die zusätzliche Altersversorgung können unterhaltsrechtlich nur berücksichtigt | L43: 57 | M43: 8000 | N43: 168000
B44: werden, wenn sie tatsächlich gebildet werden. Das unterhaltspflichtige Kind kann jedoch | L44: 58 | M44: 8000 | N44: 176000
B45: jederzeit mit der Bildung der Rücklagen beginnen. | L45: 59 | M45: 8000 | N45: 184000
L46: 60 | M46: 9000 | N46: 193000
B47: Zum Gesamtkomplex Altersvorsorgevermögen vergl. | L47: 61 | M47: 9000 | N47: 202000
B48: J. Hauß, Elternunterhalt, 5. Aufl. 2015 | L48: 62 | M48: 9000 | N48: 211000
B49: zu bestellen über den Buchhandel oder den Verlag Gieseking (s. Bestellfax bei den "Bearbeitungshinweisen"). | L49: 63 | M49: 9000 | N49: 220000
L50: 64 | M50: 9000 | N50: 229000
L51: 65 | M51: 9000 | N51: 238000

Sheet Verrentungstabelle
B1: Verrentungsrechner
B2: Mit dem Verrentungsrechner kann ermittelt werden, in welcher Höhe dem unterhaltspflichtigen Kind durch Verrentung des Schonvermögens ab Rentenalter ein monatlicher Einkommenszuwachs zuzurechnen ist.
B3: ="Beispiel: M("&TEXT(E7,"##")&") hat Vermögen in Höhe von "&TEXT(E5,"###.##0 €")&". Aus diesem Vermögen kann ihm nach BGH "&TEXT(E12,"###.##0 €")&" monatliches Einkommen ab Renteneintritt ("&TEXT(Rentenalter,"##")&") zugerechnet werden. Bei Annahme eines realistischen Rechnungszinses von "&TEXT(E6,"##%")&" und der aktuellen Sterbetafeln jedoch nur "&TEXT(E15,"###.##0 €")&". Dabei ist eine Aufzinsung des Kapitals bis zum Renteneintritt in Höhe des Rechnungszinses anzunehmen." -> Beispiel: M(55) hat Vermögen in Höhe von 120.000 €. Aus diesem Vermögen kann ihm nach BGH 1.674 € monatliches Einkommen ab Renteneintritt (67) zugerechnet werden. Bei Annahme eines realistischen Rechnungszinses von 2% und der aktuellen Sterbetafeln jedoch nur 879 €. Dabei ist eine Aufzinsung des Kapitals bis zum Renteneintritt in Höhe des Rechnungszinses anzunehmen.
B4: Vermögensverbrauchsrechner auf das | E4: Kindesleben | F4: Elternleben
B5: Höhe des einzusetzenden Vermögens: | E5: 120,000.00 €
B6: Rechnungszins: | E6: 2.0%
B7: Alter d. unterhaltspflichtigen Kindes/Elternteils: | E7: 55.0 | F7: 79
B8: Renteneintrittsalter des Kindes: | E8: 66.5
B9: Geschlecht des Kindes (m/w): | E9: m | F9: m
B10: Das Kind ist bereits Rentner (j/n): | E10: n
B11: Berechnung nach Tabelle d. BMF (ReZins 5,5%, Sterbetafel 2009/2011), BGH XII 150/10 | H11: FALSE
B12: ="Rente ab möglichem verzehrenden Vermögenseinsatz ("&TEXT(Rentenalter,"##")&"):" -> Rente ab möglichem verzehrenden Vermögenseinsatz (67): | E12: =IF(E10="j",+E5/12/VLOOKUP(E7,BMF_Barwerttabelle,IF(E9="m",3,5)),-FV(5.5%,Rentenalter-E7,,E5)/12/VLOOKUP(E8,BMF_Barwerttabelle,IF(E9="m",3,5))) -> 1,674 € | F12: =E5/12/VLOOKUP(F7,BMF_Barwerttabelle,IF(F9="m",3,5)) -> 1,495 €
B13: Lebenserwartung nach BMF-Tabelle | E13: =VLOOKUP(IF(E10="j",E7,Rentenalter),BMF_Barwerttabelle,IF(E9="m",2,4)) -> 16.74 | F13: =VLOOKUP(F7,BMF_Barwerttabelle,IF(F9="w",5,3)) -> 6.69
B14: ="Berechnung nach Verrentungssätzen mit Zinssatz "&TEXT(E6,"0,0%")&", aktuellste Sterbetafel, 5.Auflage Rn. 1129 " -> Berechnung nach Verrentungssätzen mit Zinssatz 2,0%, aktuellste Sterbetafel, 5.Auflage Rn. 1129 | H14: =IF(E10="n",-FV(E6,Rentenalter-E7,,E5),E5) -> 150,689.58 €
B15: ="Rente ab möglichem Vermögenseinsatz ("&TEXT(Rentenalter,"##")&")"&" Rechnungszins "&TEXT(E6,"#,00%")&":" -> Rente ab möglichem Vermögenseinsatz (67) Rechnungszins 2,00%: | E15: =-PMT(E6/12,E16*12,H14) -> 879 € | F15: =-PMT(E6/12,F16*12,E5) -> 1,302 €
B16: ="Lebenserwartung nach Perioden-Sterbetafel "&RIGHT(Sterbetafel!A1,11) -> Lebenserwartung nach Perioden-Sterbetafel 2009 / 2011 | E16: =VLOOKUP(IF(E10="j",E7,Rentenalter),IF(E9="m",SterbetafelM,SterbetafelW),3) -> 16.84 | F16: =VLOOKUP(F7,IF(F9="m",SterbetafelM,SterbetafelW),3) -> 8.34

Sheet Rentenlücke
B1: Erforderliches Kapital zur Schließung einer Rentenlücke
B2: Mit diesem Rechner kann das Kapital bestimmt werden, das im Alter x des unterhaltspflichtigen Kindes erforderlich ist, um im Renteneintrittsalter eine Versorgungslücke in Höhe von … € bei Annahme eines Renteneintrittsalters von … Jahren und einem Rechnungszins von ...% zu schließen.
B4: ="Beispiel: "&TEXT(E8,"##")&"("&TEXT(E6,"##")&") hat voraussichtlich im Rentenalter von "&TEXT(E7,"##")&" Jahren gegenüber dem anzunehmenden angemessenen Eigenbedarf eine Alterseinkommenslücke von "&TEXT(E5,"##0,00 €")&": erforderliches Kapital im Alter "&TEXT(E6,"##")&" bei einem Rechnungszins von "&TEXT(E9,"#,##%")&": "&TEXT(E12,"###.##0,00 €") -> Beispiel: m(55) hat voraussichtlich im Rentenalter von 67 Jahren gegenüber dem anzunehmenden angemessenen Eigenbedarf eine Alterseinkommenslücke von 900,00 €: erforderliches Kapital im Alter 55 bei einem Rechnungszins von 2,%: 116.333,49 €
B5: Rentenlücke | E5: 900.00 €
B6: Alter des unterhaltspflichtigen Kindes Kindes | E6: 55
B7: Renteneintrittsalter des unterhaltspflichtigen Kindes | E7: 67
B8: Geschlecht des Kindes (m/w) | E8: m
B9: Rechnungszins | E9: 2%
B10: Voraussichtliche Bezugsdauer der Rente nach Sterbetafel | E10: =VLOOKUP(IF(E6>E7,E6,E7),IF(E8="m",SterbetafelM,SterbetafelW),3) -> 16.12
B11: =IF(E6>E7,"","Erforderliches Kapital im Rentenalter ("&TEXT(E7,"##")&")") -> Erforderliches Kapital im Rentenalter (67) | E11: =IF(E6>E7,"",ROUND(-PV(E9,E10,E5*12),0)) -> 147,539 €
B12: ="Erforderliches Kapital im Alter "&TEXT(E6,"##")&":" -> Erforderliches Kapital im Alter 55: | E12: =IF(E7>E6,-PV(E9,E7-E6,,E11),ROUND(-PV(E9,E10,E5*12),0)) -> 116,333 €
B13: ="mon. Rücklage zur Erzielung des Zielkapitals von "&TEXT(E11,"#.###.##0")&" in der Zeit zwischen dem "&TEXT(E6,"##")&". und dem "&TEXT(E7,"##")&". Lebensjahr" -> mon. Rücklage zur Erzielung des Zielkapitals von 147.539 in der Zeit zwischen dem 55. und dem 67. Lebensjahr | E13: =ROUND(-PMT(E9/12,(E7-E6)*12,,E11),0) -> 907 €
B14: Nähere Hinweise in Hauß, Elternunterhalt, 5. Auflage Rn. 644 ff.

Sheet Korrektur der Altersvorsorge
A1: Kontrolle auf übermäßige Tilgung des Immobilienkredits
A2: Es können nur die weißen Felder ausgefüllt werden!
A3: 1. Im ersten Schritt werden bezogen auf den Zeitpunkt der Inanspruchnahme auf Elternunterhalt Zins- und Tilgungsanteile des Kredits bezogen auf die jeweilige Periode der Inanspruchnahme ermittelt.
A4: 2. Im zweiten Schritt wird der Restkreditbetrag bis zur Regelaltersgrenze zu den Bedingungen des Ursprungsdarlehens neu (fiktiv) kreditiert und der notwendige Kapitaltilgungsanteil zur Tilgung des Kredits bis zur Regelaltersgrenze errechnet.
R5: 2 | S5: 208.3333333
A6: 3. Im dritten Schritt wird nach der pauschalen Berechnungsformel des BGH (FamRZ 2006, 1511) die monatliche Altersvorsorgerücklage errechnet
A7: 4. Im vierten Schritt schließlich wird die Reduktion der monatlichen Altersvorsorgerücklage errechnet, die sich aus der Differenz der tatsächlichen Tilgungsrate für den Ursprungskredit ergibt und dem Kapitaltilgungsanteil des fiktiven Kredits ergibt.
A9: Ursprungsdarlehen der unterhaltspflichtigen Person | J9: 1. | K9: Ein Immobilienkredit wird i.d.R. über einen bestimmten Kreditbetrag zu einem im Darlehensvertrag definierten Zinssatz und einer monatlichen Rate aufgenommen. Aus diesen Daten errechnet sich die Tilgungszeit des Kredits, bis dieser volständig abgelöst ist. Zinssatz, Jahresrate und Nettokreditbetrag müssen eingegeben werden. Daüber hinaus muss angegeben werden, in welcher Zahlungsperiode (x-ten Jahr) des Kredits die Berechnung erfolgt. Falls ein Kredit berechnet werden soll, der zu einem festen Zinssatz innerhalb einer festen Laufzeit vollständig getilgt werden soll, wird die jährliche Rate als 'notwendige Rate' angegeben und müsste von Ihnen ggfls alternativ aus dem Kreditvertrag ausgelesen werden. | R9: =+F13*D13 -> -14527.46992
A10: Gebdatum d. Pflichtigen: | D10: 1980-01-01 | E10: Berechnungsdatum | F10: =TODAY() -> 2019-03-18 | G10: Kreditaufnahme am: | H10: 2010-01-01 | R10: Monatsbasis | S10: TRUE
A11: 1. | C11: Bank | D11: Sparkasse Duisburg | G11: Zinsbindung bis: | H11: 2030-01-01 | R11: =+F13/12 -> 1.210622494 | S11: =IF(Monatsbasis,12,1) -> 
C12: Zinssatz | D12: Monatsrate | E12: Kreditbetrag | F12: Tilgungszeit | G12: Enddatum | H12: im xten Jahr | V12: 2002 | W12: 54,000.00 € | X12: 45,000.00 €
C13: 2.000% | D13: -1,000.00 € | E13: 150,000.00 € | F13: =NPER(AVV_Zinssatz,AVV_Monatsrate*12,AVV_Kreditbetrag,0,0) -> 14.53 | G13: =IFERROR(DATE(YEAR(AVV_Kreditaufnahme),MONTH(AVV_Kreditaufnahme)+AVV_Tilgungszeit*12,DAY(AVV_Kreditaufnahme)),"") -> 2024-07-01 | H13: =YEARFRAC(AVV_Kreditaufnahme,Berechnungsdatum,3) -> 9 | R13: =+D13*F13 -> -14527.46992 | V13: 2003 | W13: 61,200.00 € | X13: 51,000.00 €
C14: ="in Rate "&TEXT(H13,"##") -> in Rate 9 | D14: Kapitaltilgung | E14: Zinstilgung | F14: Kapitaltilgung | G14: Restdarlehen | H14: tatsächliche Rate | V14: 2004 | W14: 61,800.00 € | X14: 52,200.00 €
D15: =IFERROR(PPMT(C13,H13,AVV_Tilgungszeit,AVV_Kreditbetrag,0,0),"") -> -10,589.65 € | E15: =IFERROR(IPMT(C13,H13,AVV_Tilgungszeit,AVV_Kreditbetrag,0,0),"") -> -1,410.35 € | F15: =IFERROR(-CUMPRINC(C13,AVV_Tilgungszeit,AVV_Kreditbetrag,1,H13,0),"") -> 87,791.66 € | G15: =IFERROR(IF(SUM(C13:H13)=0,0,+E13-F15),"") -> 62,208.34 € | H15: =-AVVKorrektur_Tilgung-E15 -> 12,000.00 € | R15: BeamterAVV | S15: 2 | V15: 2005 | W15: 62,400.00 € | X15: 52,800.00 €
R16: OstAVV | S16: FALSE | V16: 2006 | W16: 63,000.00 € | X16: 52,800.00 €
V18: 2007 | W18: 63,000.00 € | X18: 54,600.00 €
V19: 2008 | W19: 63,600.00 € | X19: 54,000.00 €
A20: 2. | C20: ="Ersatzdarlehen, Laufzeit bis Regelaltersgrenze am "&TEXT(H22,"TT.MM.JJJJ") -> Ersatzdarlehen, Laufzeit bis Regelaltersgrenze am 01.01.2047 | J20: 2. | K20: Das Ersatzdarlehen wird zum Zinssatz des Ursprungsdarlehens mit dem im x-ten Jahr des Ursprungsdarlehens bestehenden Kapitalstand berechnet. Tilgungszeit ist die Zeit bis zur Regelaltersgrenze (67). Soll eine andere Laufzeit angenommen werden, muss die Check-Box'Laufzeit autom.' deaktiviert und die gewünschte Restlaufteit manuell eingegeben werden. Über die Options-Boxen kann der Beschäftigungstyp eingestellt werden, um die Höhe der monatlichen Altersvorsorgerückstellung zu berechnen. | V20: 2009 | W20: 64,800.00 € | X20: 54,600.00 €
C21: Zinssatz | D21: Kreditbetrag | E21: Laufzeit in Jahren | F21: =+H12 -> im xten Jahr | G21: Jahresrate | H21: Regelaltersgrenze | V21: 2010 | W21: 66,000.00 € | X21: 55,800.00 €
C22: =+C13 -> 2.000% | D22: =+G15 -> 62,208.34 € | E22: =(YEAR(H22)-YEAR(Berechnungsdatum)) -> 28.00 | F22: 1 | G22: =IF(AVVKorrektur_Laufzeit=0,0,-PMT(C22,E22,D22,0,0)) -> 2,923.15 € | H22: 2047-01-01 | R22: Laufzeitautomatisch | S22: TRUE | V22: 2011 | W22: 66,000.00 € | X22: =4800*12 -> 57,600.00 €
C23: ="in Rate "&TEXT(F22,"##") -> in Rate 1 | D23: Kapitaltilgung | E23: Zinstilgung | F23: Tilgungsstand | G23: Restdarlehen | H23: notwendige Rate | V23: 2012 | W23: 67,200.00 € | X23: 57,600.00 €
D24: =IFERROR(IF(OR(F22=0,AVVKorrektur_Laufzeit=0),"",PPMT(C22,F22,IF(E22>0,E22,NPER(C22,G22,-D22,0,0)),D22,0,0)),"") -> -1,678.98 € | E24: =IFERROR(IF(OR(F22=0,AVVKorrektur_Laufzeit=0),"",IPMT(C22,F22,IF(E22>0,E22,NPER(C22,G22,-D22,0,0)),D22,0,0)),"") -> -1,244.17 € | F24: =IFERROR(IF(OR(F22=0,AVVKorrektur_Laufzeit=0),"",-CUMPRINC(C22,IF(E22>0,E22,NPER(C22,G22,-D22,0,0)),D22,1,F22,0)),"") -> 1,678.98 € | G24: =IFERROR(IF(F22=0,D22,IF(AVVKorrektur_Laufzeit=0,0,IF(+D22-F24=0,0,+D22-F24))),"") -> 60,529.36 € | H24: =-E24-D24 -> 2,923.15 € | R24: =+F13/12 -> 1.210622494 | V24: 2013 | W24: =5800*12 -> 69,600.00 € | X24: =4900*12 -> 58,800.00 €
R25: =DATEDIF(H10,E18,"y") ->  | V25: 2014 | W25: 71,400.00 € | X25: 60,000.00 €
R26: OstAVV | S26: FALSE | V26: 2015 | W26: 72,600.00 € | X26: 62,400.00 €
A27: 3. | B27: Auswirkungen auf die Altersvorsorgevermögens-Rücklage | J27: 3. | K27: Das Bruttojahreseinkommen wird aus den Angaben zum Elternunterhalt entnommen, kann aber variierend eingegeben werden. Es kann 'zusätzliches' sozialversicherungsfreies Einkommen angegeben werden. Das Berechnungsjahr kann variierend angegeben werden. Über die Options-Boxen kann der Beschäftigungstyp eingestellt werden, um die Höhe der monatlichen Altersvorsorgerückstellung zu berechnen. | V27: 2016 | W27: 74,400.00 € | X27: 64,800.00 €
B28: Bruttojahreseinkommen aus Erwerbstätigkeit: | H28: 90,000.00 €
B29: ="zusätzliches sozialversicherungsfreies Einkommen:" -> zusätzliches sozialversicherungsfreies Einkommen: | H29: 2,500.00 €
B30: Berechnungsjahr | H30: 2016
B33: ="Beitragsbemessungsgrenze "&IF(OstAVV,"(Ost)","")&": " -> Beitragsbemessungsgrenze : | H33: =IF(OR(BeamterAVV=1,BeamterAVV=3),0,VLOOKUP(H30,AVV_BBMG,IF(OstAVV,3,2))) -> 74,400.00 €
B34: ="Altersvorsorge pro Jahr: "&IF(BeamterAVV=3,"25% x "&TEXT(H28,"###.##0,00"),IF(BeamterAVV=1,"5% x "&TEXT(H28,"###.##0,00"),"5% x "&TEXT(H28,"###.##0,00")&" "&IF(H28>H33," + ("&TEXT(H28,"###.##0,00")&" - "&TEXT(H33,"###.##0,00")&") x 20% = ","")))&IF(H29>0," + 25% x "&TEXT(H29,"###.##0,00")&" =","") -> Altersvorsorge pro Jahr: 5% x 90.000,00 + (90.000,00 - 74.400,00) x 20% = + 25% x 2.500,00 = | H34: =H28*0.05+IF(BeamterAVV=1,0,IF(H28-H33>0,(H28-H33)*0.2,0))+IF(H29>0,0.25*H29,0) -> 8,245.00 €
B35: ="Altersvorsorge pro Monat: "&TEXT(H34,"###.##0,00")&" / 12 =" -> Altersvorsorge pro Monat: 8.245,00 / 12 = | H35: =+H34/12 -> 687.08 €
A37: 4. | B37: ="Reduktion der sekundären Altersvorsorge" -> Reduktion der sekundären Altersvorsorge | J37: 4. | K37: Im Berechnungfeld 4. können keine variierenden Eingaben vorgenommen werden. In der drittletzten Zeile 'Reduktion …' wird errechnet, in welcher Höhe pauschal berechnete Altersvorsorge monatlich unter Berücksichtigung der Vermögensbildung aus dem Immobilienkredit noch möglich ist.
B38: ="tatsächliche Ø Tilgung aus Ursprungsdarlehen: "&TEXT(ABS(AVVKorrektur_Tilgung),"###.##0,00")&" /12 =" -> tatsächliche Ø Tilgung aus Ursprungsdarlehen: 10.589,65 /12 = | H38: =IFERROR(ABS(AVVKorrektur_Tilgung)/12,"") -> 882.47 €
B39: ="nicht auf Altersvorsorge anrechenb. notwendige Ø Tilgung des Ersatzdarlehens: "&TEXT(ABS(AVVKorrektur_KRate),"###.##0,00")&" / 12 =" -> nicht auf Altersvorsorge anrechenb. notwendige Ø Tilgung des Ersatzdarlehens: 1.678,98 / 12 = | H39: =IFERROR(ABS(AVVKorrektur_KRate)/12,"") -> 139.92 €
B40: =IFERROR("Auf die sekundäre Altersvorsorge wären Ø anzurechnen: "&TEXT(H38,"###.##0,00")&" - "&TEXT(H39,"###.##0,00")&" =","") -> Auf die sekundäre Altersvorsorge wären Ø anzurechnen: 882,47 - 139,92 = | H40: =IFERROR(IF(H38<=-H39,H38,H38-H39),"") -> 742.56 € | T40: =Range(A1)/Range(G26) -> 
B41: ="Reduktion der Altersvorsorge pro Monat von "&TEXT(B_AVV_M,"###.##0,00")&" um "&IF(H40>0,TEXT(H40,"###.##0,00")&" auf ","0,00 €") -> Reduktion der Altersvorsorge pro Monat von 687,08 um 742,56 auf | H41: =IFERROR(IF(+B_AVV_M-AVVKorrektur_TDifferenz<0,0,B_AVV_M-IF(AVVKorrektur_TDifferenz<0,0,AVVKorrektur_TDifferenz)),"") -> 0.00 €
B42: =IFERROR("aus Ursprungsdarlehen monatlich anzurechnen: ","") -> aus Ursprungsdarlehen monatlich anzurechnen: | H42: =IFERROR(+H38,"") -> 882.47 €
B43: ="Vermögensbildung: "&TEXT(H42,"#.##0,00")&" aus Darlehen + "&TEXT(AVVKorrektur_Betrag,"###.##0,00")&" aus Altersvorsorge =" -> Vermögensbildung: 882,47 aus Darlehen + 0,00 aus Altersvorsorge = | H43: =IFERROR(+H42+H41,"") -> 882.47 €
R47: AVVKorrektur_Textausgabe | S47: FALSE | V47: 2018
V48: 2020
V50: 2021
V51: 2022
V52: 2023
V53: 2024
V55: 2026
V56: 2027
V57: 2028
V58: 2029
V59: 2030

Sheet Parametereinstellung
A5: Parametereingabe 2016 | B5: Pflichtiger | C5: Partner
A6: Selbstbehalt | B6: 1,800.00 € | C6: =1800*2*0.9-1800 -> 1,440.00 €
A7: im Selbstbehalt enthaltene Warmmietkosten | B7: 480.00 € | C7: 380.00 €
A8: Quote des Quotenunterhaltes
A9: Zeitraum | B9: von | C9: 2004-10-01 | E9: =DATE(YEAR(C9),MONTH(C9)+1,0) -> 2004-10-31
B10: bis | C10: 2005-06-30
B11: Monate | C11: =+MONTH(C10)+IF(DAY(C9)=1,1,0)-MONTH(C9)+IF(YEAR(C9)<YEAR(C10),12,0) -> 9
B12: Tage | C12: =IF(DAY(C9)>1,+DAY(E9)-DAY(C9)+1,0) -> 0.00
B13: West | C13: Ost
A14: monatliche Beitragsbemessungsgrenze | B14: =77400/12 -> 6,450.00 € | C14: =64800/12 -> 5,400.00
A16: Höchstbetrag der Ersparnis des häuslichen Zusammenlebens | C16: 700.00 €
A18: Parametereingabe 2013 - 2014 | B18: Pflichtiger | C18: Partner
A19: Selbstbehalt | B19: 1,600.00 € | C19: =+B19*0.8 -> 1,280.00 €
A20: im Selbstbehalt enthaltene Warmmietkosten | B20: 450.00 € | C20: 350.00 €
A21: Quote des Quotenunterhaltes
A22: Zeitraum | B22: von | C22: 2004-10-01
B23: bis | C23: 2005-06-30
B24: Monate | C24: =+MONTH(C23)+IF(DAY(C22)=1,1,0)-MONTH(C22)+IF(YEAR(C22)<YEAR(C23),12,0) -> 9
B25: Tage | C25: =IF(DAY(C22)>1,+DAY(E22)-DAY(C22)+1,0) -> 0.00
B26: West | C26: Ost
A27: Beitragsbemessungsgrenze | B27: 5,950.00 € | C27: 5,000.00

Sheet BMF-Tabelle (hidden)
A1: Alter | B1: Lebens-erwartung | C1: Kapitalwert | D1: Lebens-erwartung | E1: Kapitalwert
A3: 0 | B3: 77.72 | C3: 18.391 | D3: 82.73 | E3: 18.459
A4: 1 | B4: 77.02 | C4: 18.379 | D4: 81.99 | E4: 18.45
A5: 2 | B5: 76.04 | C5: 18.363 | D5: 81.01 | E5: 18.438
A6: 3 | B6: 75.06 | C6: 18.346 | D6: 80.02 | E6: 18.424
A7: 4 | B7: 74.07 | C7: 18.328 | D7: 79.03 | E7: 18.41
A8: 5 | B8: 73.08 | C8: 18.308 | D8: 78.04 | E8: 18.396
A9: 6 | B9: 72.09 | C9: 18.288 | D9: 77.05 | E9: 18.38
A10: 7 | B10: 71.09 | C10: 18.266 | D10: 76.05 | E10: 18.363
A11: 8 | B11: 70.1 | C11: 18.244 | D11: 75.06 | E11: 18.346
A12: 9 | B12: 69.11 | C12: 18.22 | D12: 74.06 | E12: 18.328
A13: 10 | B13: 68.11 | C13: 18.195 | D13: 73.07 | E13: 18.308
A14: 11 | B14: 67.12 | C14: 18.168 | D14: 72.08 | E14: 18.288
A15: 12 | B15: 66.12 | C15: 18.14 | D15: 71.08 | E15: 18.266
A16: 13 | B16: 65.13 | C16: 18.11 | D16: 70.09 | E16: 18.244
A17: 14 | B17: 64.14 | C17: 18.079 | D17: 69.09 | E17: 18.22
A18: 15 | B18: 63.15 | C18: 18.046 | D18: 68.1 | E18: 18.194
A19: 16 | B19: 62.16 | C19: 18.012 | D19: 67.11 | E19: 18.168
A20: 17 | B20: 61.17 | C20: 17.975 | D20: 66.12 | E20: 18.14
A21: 18 | B21: 60.2 | C21: 17.938 | D21: 65.13 | E21: 18.11
A22: 19 | B22: 59.22 | C22: 17.898 | D22: 64.14 | E22: 18.079
A23: 20 | B23: 58.25 | C23: 17.856 | D23: 63.16 | E23: 18.047
A24: 21 | B24: 57.28 | C24: 17.812 | D24: 62.17 | E24: 18.012
A25: 22 | B25: 56.31 | C25: 17.765 | D25: 61.18 | E25: 17.976
A26: 23 | B26: 55.34 | C26: 17.717 | D26: 60.2 | E26: 17.938
A27: 24 | B27: 54.37 | C27: 17.665 | D27: 59.21 | E27: 17.897
A28: 25 | B28: 53.4 | C28: 17.611 | D28: 58.22 | E28: 17.855
A29: 26 | B29: 52.43 | C29: 17.554 | D29: 57.24 | E29: 17.81
A30: 27 | B30: 51.46 | C30: 17.494 | D30: 56.25 | E30: 17.762
A31: 28 | B31: 50.49 | C31: 17.43 | D31: 55.26 | E31: 17.712
A32: 29 | B32: 49.52 | C32: 17.364 | D32: 54.28 | E32: 17.66
A33: 30 | B33: 48.56 | C33: 17.294 | D33: 53.29 | E33: 17.605
A34: 31 | B34: 47.59 | C34: 17.22 | D34: 52.31 | E34: 17.547
A35: 32 | B35: 46.62 | C35: 17.142 | D35: 51.32 | E35: 17.485
A36: 33 | B36: 45.66 | C36: 17.061 | D36: 50.34 | E36: 17.42
A37: 34 | B37: 44.69 | C37: 16.975 | D37: 49.36 | E37: 17.352
A38: 35 | B38: 43.72 | C38: 16.884 | D38: 48.38 | E38: 17.281
A39: 36 | B39: 42.76 | C39: 16.789 | D39: 47.4 | E39: 17.205
A40: 37 | B40: 41.8 | C40: 16.689 | D40: 46.42 | E40: 17.126
A41: 38 | B41: 40.84 | C41: 16.584 | D41: 45.45 | E41: 17.043
A42: 39 | B42: 39.88 | C42: 16.473 | D42: 44.47 | E42: 16.954
A43: 40 | B43: 38.93 | C43: 16.358 | D43: 43.5 | E43: 16.862
A44: 41 | B44: 37.98 | C44: 16.237 | D44: 42.53 | E44: 16.765
A45: 42 | B45: 37.03 | C45: 16.109 | D45: 41.57 | E45: 16.664
A46: 43 | B46: 36.08 | C46: 15.975 | D46: 40.6 | E46: 16.557
A47: 44 | B47: 35.15 | C47: 15.837 | D47: 39.64 | E47: 16.445
A48: 45 | B48: 34.22 | C48: 15.691 | D48: 38.69 | E48: 16.328
A49: 46 | B49: 33.29 | C49: 15.539 | D49: 37.74 | E49: 16.205
A50: 47 | B50: 32.37 | C50: 15.389 | D50: 36.79 | E50: 16.076
A51: 48 | B51: 31.47 | C51: 15.217 | D51: 35.85 | E51: 15.941
A52: 49 | B52: 30.56 | C52: 15.044 | D52: 34.91 | E52: 15.8
A53: 50 | B53: 29.67 | C53: 14.867 | D53: 33.98 | E53: 15.653
A54: 51 | B54: 28.79 | C54: 14.683 | D54: 33.06 | E54: 15.5
A55: 52 | B55: 27.926 | C55: 14.492 | D55: 32.13 | E55: 15.337
A56: 53 | B56: 27.06 | C56: 14.294 | D56: 31.22 | E56: 15.17
A57: 54 | B57: 26.21 | C57: 14.09 | D57: 30.31 | E57: 14.995
A58: 55 | B58: 25.37 | C58: 13.879 | D58: 29.41 | E58: 14.813 | G58: =100000/C58 -> 7205.130053 | H58: =+G58/12 -> 600.4275044
A59: 56 | B59: 24.54 | C59: 13.661 | D59: 28.51 | E59: 14.622
A60: 57 | B60: 23.72 | C60: 13.435 | D60: 27.62 | E60: 14.424
A61: 58 | B61: 22.9 | C61: 13.2 | D61: 26.73 | E61: 14.215
A62: 59 | B62: 22.1 | C62: 12.96 | D62: 25.84 | E62: 13.998
A63: 60 | B63: 21.31 | C63: 12.713 | D63: 24.96 | E63: 13.772
A64: 61 | B64: 20.53 | C64: 12.458 | D64: 24.1 | E64: 13.541
A65: 62 | B65: 19.76 | C65: 12.196 | D65: 23.23 | E65: 13.296
A66: 63 | B66: 18.99 | C66: 11.923 | D66: 21.38 | E66: 13.045
A67: 64 | B67: 18.23 | C67: 11.643 | D67: 21.53 | E67: 12.783
A68: 65 | B68: 17.48 | C68: 11.354 | D68: 20.68 | E68: 12.508
A69: 66 | B69: 16.74 | C69: 11.058 | D69: 19.84 | E69: 12.224
A70: 67 | B70: 16.01 | C70: 10.754 | D70: 19.01 | E70: 11.93
A71: 68 | B71: 15.3 | C71: 10.447 | D71: 18.18 | E71: 11.624
A72: 69 | B72: 14.58 | C72: 10.123 | D72: 17.35 | E72: 11.303
A73: 70 | B73: 13.89 | C73: 9.801 | D73: 16.53 | E73: 10.972
A74: 71 | B74: 13.2 | C74: 9.467 | D74: 15.72 | E74: 10.63
A75: 72 | B75: 12.52 | C75: 9.125 | D75: 14.92 | E75: 10.278
A76: 73 | B76: 11.86 | C76: 8.782 | D76: 14.13 | E76: 9.915
A77: 74 | B77: 11.21 | C77: 8.431 | D77: 13.36 | E77: 9.546
A78: 75 | B78: 10.58 | C78: 8.079 | D78: 12.6 | E78: 9.166
A79: 76 | B79: 9.97 | C79: 7.727 | D79: 11.87 | E79: 8.787
A80: 77 | B80: 9.38 | C80: 7.376 | D80: 11.15 | E80: 8.398
A81: 78 | B81: 8.82 | C81: 7.032 | D81: 10.45 | E81: 8.005
A82: 79 | B82: 8.28 | C82: 6.69 | D82: 9.78 | E82: 7.615
A83: 80 | B83: 7.77 | C83: 6.358 | D83: 9.13 | E83: 7.223
A84: 81 | B84: 7.28 | C84: 6.03 | D84: 8.51 | E84: 6.837
A85: 82 | B85: 6.81 | C85: 5.708 | D85: 7.91 | E85: 6.45
A86: 83 | B86: 6.36 | C86: 5.392 | D86: 7.34 | E86: 6.071
A87: 84 | B87: 5.93 | C87: 5.082 | D87: 6.8 | E87: 5.701
A88: 85 | B88: 5.52 | C88: 4.78 | D88: 6.29 | E88: 5.342
A89: 86 | B89: 5.13 | C89: 4.487 | D89: 5.81 | E89: 4.994
A90: 87 | B90: 4.76 | C90: 4.203 | D90: 5.37 | E90: 4.668
A91: 88 | B91: 4.43 | C91: 3.945 | D91: 4.96 | E91: 4.357
A92: 89 | B92: 4.12 | C92: 3.698 | D92: 4.58 | E92: 4.063
A93: 90 | B93: 3.84 | C93: 3.472 | D93: 4.25 | E93: 3.802
A94: 91 | B94: 3.56 | C94: 3.242 | D94: 3.94 | E94: 3.553
A95: 92 | B95: 3.32 | C95: 3.042 | D95: 3.68 | E95: 3.341
A96: 93 | B96: 3.1 | C96: 2.857 | D96: 3.43 | E96: 3.134
A97: 94 | B97: 2.89 | C97: 2.678 | D97: 3.19 | E97: 2.933
A98: 95 | B98: 2.71 | C98: 2.523 | D98: 2.97 | E98: 2.747
A99: 96 | B99: 2.54 | C99: 2.375 | D99: 2.78 | E99: 2.584
A100: 97 | B100: 2.38 | C100: 2.235 | D100: 2.6 | E100: 2.428
A101: 98 | B101: 2.23 | C101: 2.103 | D101: 2.43 | E101: 2.279
A102: 99 | B102: 2.1 | C102: 1.987 | D102: 2.28 | E102: 2.147
A103: 100 | B103: 1.98 | C103: 1.879 | D103: 2.14 | E103: 2.022

Sheet Sterbetafel (hidden)
A1: Periodensterbetafel 2009 / 2011 | H1: =+A1 -> Periodensterbetafel 2009 / 2011
A3: Deutschland | H3: Deutschland
A4: Männer | H4: Frauen
A5: Quelle, Statistisches Bundesamt | H5: Quelle, Statistisches Bundesamt
A6: Vollendetes Alter | B6: Überlebende im Alter x | C6: Durchschn. Lebenserwartung im Alter x | D6: Vollendetes Alter | E6: Überlebende im Alter x | F6: Durchschn. Lebenserwartung im Alter x | H6: Vollendetes Alter | I6: Überlebende im Alter x | J6: Durchschn. Lebenserwartung im Alter x | K6: Vollendetes Alter | L6: Überlebende im Alter x | M6: Durchschn. Lebenserwartung im Alter x
B7: Überlebende | C7: Durchschnittliche | E7: Überlebende | F7: Durchschnittliche | I7: Überlebende | J7: Durchschnittliche | L7: Überlebende | M7: Durchschnittliche
B8: im Alter x | C8: Lebenserwartung | E8: im Alter x | F8: Lebenserwartung | I8: im Alter x | J8: Lebenserwartung | L8: im Alter x | M8: Lebenserwartung
C9: im Alter x | F9: im Alter x | J9: im Alter x | M9: im Alter x
C10: in Jahren | F10: in Jahren | J10: in Jahren | M10: in Jahren
B11: l x | C11: e x | E11: l x | F11: e x | I11: l x | J11: e x | L11: l x | M11: e x
B13: 100000 | C13: 77.97 | H13: 0 | I13: 100000 | J13: 82.73
A14: 1 | B14: 99600 | C14: 77.28 | D14: 51 | E14: =+B64 -> 95513 | F14: =+C64 -> 28.98 | H14: 1 | I14: 99685 | J14: 81.99 | K14: 51 | L14: =+I64 -> 97324 | M14: =+J64 -> 33.06
A15: 2 | B15: 99567 | C15: 76.31 | D15: 52 | E15: =+B65 -> 95086 | F15: 28.11 | H15: 2 | I15: 99658 | J15: 81.01 | K15: 52 | L15: =+I65 -> 97085 | M15: 32.13
A16: 3 | B16: 99548 | C16: 75.32 | D16: 53 | E16: 94636 | F16: 27.24 | H16: 3 | I16: 99644 | J16: 80.02 | K16: 53 | L16: 96819 | M16: 31.22
A17: 4 | B17: 99535 | C17: 74.33 | D17: 54 | E17: 94142 | F17: 26.38 | H17: 4 | I17: 99632 | J17: 79.03 | K17: 54 | L17: 96528 | M17: 30.31
A18: 5 | B18: 99522 | C18: 73.34 | D18: 55 | E18: 93594 | F18: 25.53 | H18: 5 | I18: 99621 | J18: 78.04 | K18: 55 | L18: 96220 | M18: 29.41
A19: 6 | B19: 99511 | C19: 72.35 | D19: 56 | E19: 92996 | F19: 24.69 | H19: 6 | I19: 99610 | J19: 77.05 | K19: 56 | L19: 95879 | M19: 28.51
A20: 7 | B20: 99501 | C20: 71.36 | D20: 57 | E20: 92344 | F20: 23.87 | H20: 7 | I20: 99602 | J20: 76.05 | K20: 57 | L20: 95517 | M20: 27.62
A21: 8 | B21: 99492 | C21: 70.36 | D21: 58 | E21: 91635 | F21: 23.05 | H21: 8 | I21: 99593 | J21: 75.06 | K21: 58 | L21: 95135 | M21: 26.73
A22: 9 | B22: 99484 | C22: 69.37 | D22: 59 | E22: 90869 | F22: 22.24 | H22: 9 | I22: 99586 | J22: 74.06 | K22: 59 | L22: 94716 | M22: 25.84
A23: 10 | B23: 99476 | C23: 68.38 | D23: 60 | E23: 90042 | F23: 21.44 | H23: 10 | I23: 99579 | J23: 73.07 | K23: 60 | L23: 94268 | M23: 24.96
A24: 11 | B24: 99467 | C24: 67.38 | D24: 61 | E24: 89135 | F24: 20.65 | H24: 11 | I24: 99572 | J24: 72.08 | K24: 61 | L24: 93760 | M24: 24.10
A25: 12 | B25: 99459 | C25: 66.39 | D25: 62 | E25: 88170 | F25: 19.87 | H25: 12 | I25: 99564 | J25: 71.08 | K25: 62 | L25: 93222 | M25: 23.23
A26: 13 | B26: 99449 | C26: 65.39 | D26: 63 | E26: 87133 | F26: 19.10 | H26: 13 | I26: 99556 | J26: 70.09 | K26: 63 | L26: 92634 | M26: 22.38
A27: 14 | B27: 99438 | C27: 64.40 | D27: 64 | E27: 86050 | F27: 18.33 | H27: 14 | I27: 99547 | J27: 69.09 | K27: 64 | L27: 92009 | M27: 21.53
A28: 15 | B28: 99423 | C28: 63.41 | D28: 65 | E28: 84851 | F28: 17.59 | H28: 15 | I28: 99536 | J28: 68.10 | K28: 65 | L28: 91333 | M28: 20.68
A29: 16 | B29: 99405 | C29: 62.42 | D29: 66 | E29: 83583 | F29: 16.84 | H29: 16 | I29: 99524 | J29: 67.11 | K29: 66 | L29: 90620 | M29: 19.84
A30: 17 | B30: 99380 | C30: 61.44 | D30: 67 | E30: 82222 | F30: 16.12 | H30: 17 | I30: 99508 | J30: 66.12 | K30: 67 | L30: 89845 | M30: 19.01
A31: 18 | B31: 99346 | C31: 60.46 | D31: 68 | E31: =+B81 -> 80779 | F31: 15.39 | H31: 18 | I31: 99493 | J31: 65.13 | K31: 68 | L31: =+I81 -> 89024 | M31: 18.18
A32: 19 | B32: 99299 | C32: 59.49 | D32: 69 | E32: 79253 | F32: 14.68 | H32: 19 | I32: 99470 | J32: 64.14 | K32: 69 | L32: 88160 | M32: 17.35
A33: 20 | B33: 99250 | C33: 58.52 | D33: 70 | E33: 77610 | F33: 13.98 | H33: 20 | I33: 99449 | J33: 63.16 | K33: 70 | L33: 87223 | M33: 16.53
A34: 21 | B34: 99199 | C34: 57.55 | D34: 71 | E34: 75868 | F34: 13.29 | H34: 21 | I34: 99427 | J34: 62.17 | K34: 71 | L34: 86211 | M34: 15.72
A35: 22 | B35: 99148 | C35: 56.58 | D35: 72 | E35: 74010 | F35: 12.61 | H35: 22 | I35: 99406 | J35: 61.18 | K35: 72 | L35: 85101 | M35: 14.92
A36: 23 | B36: 99097 | C36: 55.60 | D36: 73 | E36: 72028 | F36: 11.95 | H36: 23 | I36: 99384 | J36: 60.20 | K36: 73 | L36: 83869 | M36: 14.13
A37: 24 | B37: 99049 | C37: 54.63 | D37: 74 | E37: 69921 | F37: 11.29 | H37: 24 | I37: 99361 | J37: 59.21 | K37: 74 | L37: 82505 | M37: 13.36
A38: 25 | B38: 98995 | C38: 53.66 | D38: 75 | E38: 67603 | F38: 10.66 | H38: 25 | I38: 99341 | J38: 58.22 | K38: 75 | L38: 80970 | M38: 12.60
A39: 26 | B39: 98941 | C39: 52.69 | D39: 76 | E39: 65118 | F39: 10.05 | H39: 26 | I39: 99319 | J39: 57.24 | K39: 76 | L39: 79232 | M39: 11.87
A40: 27 | B40: 98885 | C40: 51.72 | D40: 77 | E40: 62455 | F40: 9.46 | H40: 27 | I40: 99296 | J40: 56.25 | K40: 77 | L40: 77292 | M40: 11.15
A41: 28 | B41: 98824 | C41: 50.75 | D41: 78 | E41: 59594 | F41: 8.89 | H41: 28 | I41: 99269 | J41: 55.26 | K41: 78 | L41: 75149 | M41: 10.45
A42: 29 | B42: 98765 | C42: 49.78 | D42: 79 | E42: 56503 | F42: 8.34 | H42: 29 | I42: 99244 | J42: 54.28 | K42: 79 | L42: 72739 | M42: 9.78
A43: 30 | B43: 98704 | C43: 48.81 | D43: 80 | E43: 53238 | F43: 7.82 | H43: 30 | I43: 99216 | J43: 53.29 | K43: 80 | L43: 70098 | M43: 9.13
A44: 31 | B44: 98641 | C44: 47.84 | D44: 81 | E44: 49810 | F44: 7.33 | H44: 31 | I44: 99188 | J44: 52.31 | K44: 81 | L44: 67171 | M44: 8.51
A45: 32 | B45: 98573 | C45: 46.87 | D45: 82 | E45: 46210 | F45: 6.86 | H45: 32 | I45: 99158 | J45: 51.32 | K45: 82 | L45: 63974 | M45: 7.91
A46: 33 | B46: 98502 | C46: 45.91 | D46: 83 | E46: 42527 | F46: 6.41 | H46: 33 | I46: 99122 | J46: 50.34 | K46: 83 | L46: 60446 | M46: 7.34
A47: 34 | B47: 98426 | C47: 44.94 | D47: 84 | E47: =+B97 -> 38838 | F47: 5.97 | H47: 34 | I47: 99086 | J47: 49.36 | K47: 84 | L47: =+I97 -> 56655 | M47: 6.80
A48: 35 | B48: 98348 | C48: 43.98 | D48: 85 | E48: 35051 | F48: 5.56 | H48: 35 | I48: 99044 | J48: 48.38 | K48: 85 | L48: 52558 | M48: 6.29
A49: 36 | B49: 98267 | C49: 43.01 | D49: 86 | E49: 31276 | F49: 5.18 | H49: 36 | I49: 99005 | J49: 47.40 | K49: 86 | L49: 48209 | M49: 5.81
A50: 37 | B50: 98181 | C50: 42.05 | D50: 87 | E50: 27522 | F50: 4.81 | H50: 37 | I50: 98958 | J50: 46.42 | K50: 87 | L50: 43667 | M50: 5.37
A51: 38 | B51: 98091 | C51: 41.09 | D51: 88 | E51: 23827 | F51: 4.48 | H51: 38 | I51: 98905 | J51: 45.45 | K51: 88 | L51: 38938 | M51: 4.96
A52: 39 | B52: 97987 | C52: 40.13 | D52: 89 | E52: 20353 | F52: 4.16 | H52: 39 | I52: 98850 | J52: 44.47 | K52: 89 | L52: 34176 | M52: 4.58
A53: 40 | B53: 97880 | C53: 39.18 | D53: 90 | E53: 16985 | F53: 3.89 | H53: 40 | I53: 98784 | J53: 43.50 | K53: 90 | L53: 29340 | M53: 4.25
A54: 41 | B54: 97763 | C54: 38.22 | D54: 91 | E54: 14037 | F54: 3.60 | H54: 41 | I54: 98715 | J54: 42.53 | K54: 91 | L54: 24798 | M54: 3.94
A55: 42 | B55: 97638 | C55: 37.27 | D55: 92 | E55: 11270 | F55: 3.36 | H55: 42 | I55: 98636 | J55: 41.57 | K55: 92 | L55: 20392 | M55: 3.68
A56: 43 | B56: 97498 | C56: 36.32 | D56: 93 | E56: 8865 | F56: 3.14 | H56: 43 | I56: 98548 | J56: 40.60 | K56: 93 | L56: 16533 | M56: 3.43
A57: 44 | B57: 97336 | C57: 35.38 | D57: 94 | E57: 6813 | F57: 2.93 | H57: 44 | I57: 98447 | J57: 39.64 | K57: 94 | L57: 13107 | M57: 3.19
A58: 45 | B58: 97156 | C58: 34.45 | D58: 95 | E58: 5110 | F58: 2.74 | H58: 45 | I58: 98336 | J58: 38.69 | K58: 95 | L58: 10146 | M58: 2.97
A59: 46 | B59: 96959 | C59: 33.52 | D59: 96 | E59: 3734 | F59: 2.57 | H59: 46 | I59: 98211 | J59: 37.74 | K59: 96 | L59: 7660 | M59: 2.78
A60: 47 | B60: 96736 | C60: 32.59 | D60: 97 | E60: 2656 | F60: 2.41 | H60: 47 | I60: 98073 | J60: 36.79 | K60: 97 | L60: 5632 | M60: 2.60
A61: 48 | B61: 96477 | C61: 31.68 | D61: 98 | E61: 1836 | F61: 2.27 | H61: 48 | I61: 97913 | J61: 35.85 | K61: 98 | L61: 4028 | M61: 2.43
A62: 49 | B62: 96191 | C62: 30.77 | D62: 99 | E62: 1232 | F62: 2.13 | H62: 49 | I62: 97740 | J62: 34.91 | K62: 99 | L62: 2799 | M62: 2.28
A63: 50 | B63: 95872 | C63: 29.87 | D63: 100 | E63: =+B113 -> 801 | F63: =+C113 -> 2.01 | H63: 50 | I63: 97538 | J63: 33.98 | K63: 100 | L63: =+I113 -> 1887 | M63: =+J113 -> 2.14
A64: 51 | B64: 95513 | C64: 28.98 | H64: 51 | I64: 97324 | J64: 33.06
A65: 52 | B65: 95086 | C65: 28.11 | H65: 52 | I65: 97085 | J65: 32.13
A66: 53 | B66: 94636 | C66: 27.24 | H66: 53 | I66: 96819 | J66: 31.22
A67: 54 | B67: 94142 | C67: 26.38 | H67: 54 | I67: 96528 | J67: 30.31
A68: 55 | B68: 93594 | C68: 25.53 | H68: 55 | I68: 96220 | J68: 29.41
A69: 56 | B69: 92996 | C69: 24.69 | H69: 56 | I69: 95879 | J69: 28.51
A70: 57 | B70: 92344 | C70: 23.87 | H70: 57 | I70: 95517 | J70: 27.62
A71: 58 | B71: 91635 | C71: 23.05 | H71: 58 | I71: 95135 | J71: 26.73
A72: 59 | B72: 90869 | C72: 22.24 | H72: 59 | I72: 94716 | J72: 25.84
A73: 60 | B73: 90042 | C73: 21.44 | H73: 60 | I73: 94268 | J73: 24.96
A74: 61 | B74: 89135 | C74: 20.65 | H74: 61 | I74: 93760 | J74: 24.10
A75: 62 | B75: 88170 | C75: 19.87 | H75: 62 | I75: 93222 | J75: 23.23
A76: 63 | B76: 87133 | C76: 19.10 | H76: 63 | I76: 92634 | J76: 22.38
A77: 64 | B77: 86050 | C77: 18.33 | H77: 64 | I77: 92009 | J77: 21.53
A78: 65 | B78: 84851 | C78: 17.59 | H78: 65 | I78: 91333 | J78: 20.68
A79: 66 | B79: 83583 | C79: 16.84 | H79: 66 | I79: 90620 | J79: 19.84
A80: 67 | B80: 82222 | C80: 16.12 | H80: 67 | I80: 89845 | J80: 19.01
A81: 68 | B81: 80779 | C81: 15.39 | H81: 68 | I81: 89024 | J81: 18.18
A82: 69 | B82: 79253 | C82: 14.68 | H82: 69 | I82: 88160 | J82: 17.35
A83: 70 | B83: 77610 | C83: 13.98 | H83: 70 | I83: 87223 | J83: 16.53
A84: 71 | B84: 75868 | C84: 13.29 | H84: 71 | I84: 86211 | J84: 15.72
A85: 72 | B85: 74010 | C85: 12.61 | H85: 72 | I85: 85101 | J85: 14.92
A86: 73 | B86: 72028 | C86: 11.95 | H86: 73 | I86: 83869 | J86: 14.13
A87: 74 | B87: 69921 | C87: 11.29 | H87: 74 | I87: 82505 | J87: 13.36
A88: 75 | B88: 67603 | C88: 10.66 | H88: 75 | I88: 80970 | J88: 12.60
A89: 76 | B89: 65118 | C89: 10.05 | H89: 76 | I89: 79232 | J89: 11.87
A90: 77 | B90: 62455 | C90: 9.46 | H90: 77 | I90: 77292 | J90: 11.15 | M90: =FV(5.5%,10,,50000) -> -85407.22292
A91: 78 | B91: 59594 | C91: 8.89 | H91: 78 | I91: 75149 | J91: 10.45 | M91: =+M90/10.6/12 -> -671.4404317
A92: 79 | B92: 56503 | C92: 8.34 | H92: 79 | I92: 72739 | J92: 9.78
A93: 80 | B93: 53238 | C93: 7.82 | H93: 80 | I93: 70098 | J93: 9.13
A94: 81 | B94: 49810 | C94: 7.33 | H94: 81 | I94: 67171 | J94: 8.51
A95: 82 | B95: 46210 | C95: 6.86 | H95: 82 | I95: 63974 | J95: 7.91
A96: 83 | B96: 42527 | C96: 6.41 | H96: 83 | I96: 60446 | J96: 7.34
A97: 84 | B97: 38838 | C97: 5.97 | H97: 84 | I97: 56655 | J97: 6.80
A98: 85 | B98: 35051 | C98: 5.56 | H98: 85 | I98: 52558 | J98: 6.29
A99: 86 | B99: 31276 | C99: 5.18 | H99: 86 | I99: 48209 | J99: 5.81
A100: 87 | B100: 27522 | C100: 4.81 | H100: 87 | I100: 43667 | J100: 5.37
A101: 88 | B101: 23827 | C101: 4.48 | H101: 88 | I101: 38938 | J101: 4.96
A102: 89 | B102: 20353 | C102: 4.16 | H102: 89 | I102: 34176 | J102: 4.58
A103: 90 | B103: 16985 | C103: 3.89 | H103: 90 | I103: 29340 | J103: 4.25
A104: 91 | B104: 14037 | C104: 3.60 | H104: 91 | I104: 24798 | J104: 3.94
A105: 92 | B105: 11270 | C105: 3.36 | H105: 92 | I105: 20392 | J105: 3.68
A106: 93 | B106: 8865 | C106: 3.14 | H106: 93 | I106: 16533 | J106: 3.43
A107: 94 | B107: 6813 | C107: 2.93 | H107: 94 | I107: 13107 | J107: 3.19
A108: 95 | B108: 5110 | C108: 2.74 | H108: 95 | I108: 10146 | J108: 2.97
A109: 96 | B109: 3734 | C109: 2.57 | H109: 96 | I109: 7660 | J109: 2.78
A110: 97 | B110: 2656 | C110: 2.41 | H110: 97 | I110: 5632 | J110: 2.60
A111: 98 | B111: 1836 | C111: 2.27 | H111: 98 | I111: 4028 | J111: 2.43
A112: 99 | B112: 1232 | C112: 2.13 | H112: 99 | I112: 2799 | J112: 2.28
A113: 100 | B113: 801 | C113: 2.01 | H113: 100 | I113: 1887 | J113: 2.14
